bitfinex-derivatives/quotes_ETHF0:USTF0_20250709
["timestamp","ask_amount","ask_price","bid_price","bid_amount"]
[1752065013110,0.75163,2660.5,2660.4,52.93764]
[1752065014502,3.56062943,2660.9,2660.4,52.186]
[1752065014705,3.56062943,2660.9,2660.7,0.75155]
[1752065014706,0.75154,2660.8,2660.7,0.75155]
[1752065014911,0.75157,2660.7,2660.6,52.92958]
[1752065015108,0.75157,2660.8,2660.7,0.75157]
[1752065015310,0.75157,2660.7,2660.6,52.92958]
[1752065015805,0.75157,2660.7,2660.6,52.178]
[1752065016309,0.75157,2660.7,2660.6,52.9296]
[1752065017807,0.75163,2660.5,2660.4,1.09442943]
[1752065018009,1.09442943,2660.5,2660.2,0.7517]
[1752065018308,0.75166,2660.4,2660.3,52.171]
[1752065018516,1.92896,2660.4,2660.3,52.171]
[1752065018917,1.1773,2660.4,2660.3,52.92268]
[1752065019610,0.75163,2660.5,2660.3,52.171]
[1752065019816,0.75163,2660.5,2660.3,52.92267]
[1752065020017,0.75166,2660.4,2660.3,53.3519]
[1752065020218,0.75164,2660.5,2660.3,54.10358]
[1752065020613,0.75165,2660.4,2660.3,53.3519]
[1752065020916,0.75165,2660.4,2660.3,54.10358]
[1752065021114,0.75165,2660.5,2660.3,54.10358]
[1752065021416,0.75165,2660.4,2660.3,53.3519]
[1752065022215,2.5323,2660.7,2660.3,53.3519]
[1752065022615,0.75166,2660.4,2660.3,53.3519]
[1752065023312,0.75166,2660.4,2660.3,52.171]
[1752065023513,1.84608943,2660.4,2660.3,52.171]
[1752065023709,0.75171,2660.2,2660.1,0.00563327]
[1752065023913,0.75171,2660.2,2660.1,52.16763327]
[1752065026715,2.07011,2660.2,2660.1,52.16763327]
[1752065026913,2.07011,2660.2,2660.1,0.00563327]
[1752065028621,0.75171,2660.2,2660.1,0.00563327]
[1752065029923,3.95951,2660.2,2660.1,0.00563327]
[1752065030620,0.75171,2660.2,2660.1,0.00563327]
[1752065031020,0.75171,2660.2,2660.1,1.17843327]
[1752065031520,0.75171,2660.2,2660.1,1.93017327]
[1752065034722,0.75171,2660.3,2660.2,0.7517]
[1752065036129,0.75171,2660.2,2660.1,55.43515327]
[1752065036330,0.75171,2660.3,2660.2,0.75169]
[1752065036924,0.75171,2660.2,2660.1,52.15063327]
[1752065037124,3.95951,2660.2,2660.1,52.15063327]
[1752065037523,1.3265,2660.4,2660.1,52.15063327]
[1752065037724,0.75171,2660.2,2660.1,52.90235327]
[1752065038827,0.75169,2660.4,2660.3,0.75166]
[1752065039129,0.75171,2660.3,2660.2,0.75169]
[1752065039825,0.75162,2660.6,2660.5,0.75163]
[1752065041823,3.95935,2660.8,2660.7,0.75157]
[1752065042019,3.2078,2661.1,2660.7,2.97334943]
[1752065042331,0.75148,2661.1,2661.0,0.75147]
[1752065042626,6.56639806,2661.4,2661.1,0.75146]
[1752065042831,0.75144,2661.2,2661.1,0.75146]
[1752065043230,0.75143,2661.2,2661.1,1.84586943]
[1752065043625,1.1785,2661.6,2661.1,1.09442943]
[1752065043826,3.35859806,2661.8,2661.5,1.84575943]
[1752065044127,0.75129,2661.7,2661.6,52.132]
[1752065044519,0.75129,2661.7,2661.6,52.88332]
[1752065044720,64.0,2662.0,2661.9,0.75123]
[1752065044933,64.7512,2662.0,2661.9,1.09442943]
[1752065045129,64.7512,2662.0,2661.9,1.84565943]
[1752065045630,64.7512,2662.0,2661.9,1.09442943]
[1752065045825,64.7512,2662.0,2661.9,0.75123]
[1752065046021,64.7512,2662.0,2661.8,52.88224]
[1752065046022,64.0,2662.0,2661.8,52.88224]
[1752065046228,64.0,2662.0,2661.9,0.75123]
[1752065047428,64.0,2662.0,2661.8,52.131]
[1752065047628,0.75123,2661.9,2661.8,52.131]
[1752065048229,64.0,2662.0,2661.9,0.75123]
[1752065048735,0.75123,2661.9,2661.8,52.88224]
[1752065049325,64.0,2662.0,2661.9,0.75123]
[1752065049531,0.75123,2661.9,2661.8,52.88225]
[1752065050529,0.75123,2661.9,2661.8,52.131]
[1752065050925,64.0,2662.0,2661.8,52.131]
[1752065051233,0.75123,2661.9,2661.8,52.88225]
[1752065051732,0.75123,2661.9,2661.8,52.88226]
[1752065052136,0.75123,2661.9,2661.8,52.88224]
[1752065052632,0.75123,2661.9,2661.8,52.131]
[1752065053627,0.75123,2661.9,2661.8,52.88226]
[1752065053833,0.75123,2661.9,2661.8,52.131]
[1752065054033,2.07773,2661.9,2661.8,52.131]
[1752065054236,0.75129,2661.7,2661.6,53.225]
[1752065054831,0.75129,2661.7,2661.6,52.097]
[1752065056337,1.87737,2661.8,2661.7,0.75129]
[1752065056632,0.75123,2661.9,2661.8,0.75125]
[1752065057134,0.75123,2661.9,2661.8,1.84355]
[1752065057636,0.75123,2661.9,2661.8,53.93155]
[1752065057832,0.75123,2661.9,2661.8,53.1803]
[1752065058228,0.75123,2661.9,2661.8,53.93156]
[1752065059439,65.0757,2662.0,2661.8,53.1803]
[1752065059635,0.75123,2661.9,2661.8,53.93155]
[1752065059941,0.75123,2661.9,2661.8,53.1803]
[1752065060243,0.75123,2661.9,2661.8,53.93156]
[1752065060541,0.75123,2661.9,2661.8,53.1803]
[1752065061244,0.75123,2661.9,2661.8,53.93156]
[1752065061534,0.75123,2661.9,2661.8,53.1803]
[1752065067443,0.75123,2661.9,2661.8,52.088]
[1752065071245,0.75129,2661.7,2661.6,1.0945]
[1752065071441,0.75129,2661.7,2661.6,53.1565]
[1752065075444,3.95909,2661.7,2661.6,53.1565]
[1752065076643,0.75129,2661.7,2661.6,53.1565]
[1752065078351,0.75129,2661.7,2661.6,54.4016]
[1752065079853,0.75129,2661.7,2661.6,53.1565]
[1752065087765,0.75129,2661.7,2661.6,52.062]
[1752065090362,0.75129,2661.7,2661.6,53.3248]
[1752065090558,0.75129,2661.7,2661.6,54.07612]
[1752065090759,3.35859806,2662.3,2662.2,0.75115]
[1752065090959,2.95976,2662.8,2662.2,56.32422943]
[1752065091165,0.75108,2662.5,2662.4,0.75109]
[1752065091465,0.75108,2662.5,2662.4,52.77309]
[1752065091669,0.75108,2662.5,2662.4,53.86751943]
[1752065093258,0.75108,2662.5,2662.4,1.84551943]
[1752065095571,1.0823,2662.8,2662.7,0.75101]
[1752065095763,0.75098,2662.8,2662.7,1.84543943]
[1752065095958,0.75097,2662.9,2662.8,0.75095]
[1752065096168,1.80024,2663.0,2662.9,0.75095]
[1752065096368,1.80024,2663.0,2662.9,1.84537943]
[1752065097176,1.80024,2663.0,2662.9,1.09442943]
[1752065097464,1.80024,2663.0,2662.9,1.84537943]
[1752065097665,1.80024,2663.0,2662.9,1.09442943]
[1752065098371,0.75095,2662.9,2662.8,55.96876]
[1752065099369,0.75095,2662.9,2662.8,52.76098]
[1752065099569,0.75095,2662.9,2662.8,52.01]
[1752065100566,0.75095,2662.9,2662.8,52.76098]
[1752065100769,0.75095,2662.9,2662.8,54.01228]
[1752065102066,0.75094,2663.0,2662.9,0.75091]
[1752065102373,0.75091,2663.1,2663.0,0.75088]
[1752065102670,1.77384,2663.3,2663.2,0.75086]
[1752065102867,1.77384,2663.3,2663.2,53.83528943]
[1752065103067,0.75084,2663.3,2663.2,53.83528943]
[1752065103373,0.75084,2663.4,2663.3,0.75081]
[1752065103568,1.77381,2663.5,2663.4,0.75081]
[1752065103764,3.2078,2663.7,2663.4,53.83323943]
[1752065103970,1.8314,2663.8,2663.7,0.75072]
[1752065104169,0.75069,2663.9,2663.8,0.75067]
[1752065104371,1.87647,2664.2,2663.8,0.75067]
[1752065104372,0.7506,2664.2,2664.1,0.7506]
[1752065104665,0.75056,2664.3,2664.2,0.75056]
[1752065104868,1.87593,2665.0,2664.2,51.987]
[1752065105172,1.87593,2665.0,2664.6,1.84489943]
[1752065105173,0.75044,2664.7,2664.6,1.84489943]
[1752065105372,3.2078,2665.1,2664.6,53.08042943]
[1752065105573,0.75033,2665.2,2665.0,1.09442943]
[1752065105770,3.2078,2665.5,2665.0,53.82977943]
[1752065105970,3.95802,2665.5,2665.4,1.09442943]
[1752065106170,3.2078,2665.5,2665.2,53.07342943]
[1752065106376,0.75027,2665.3,2665.2,53.07342943]
[1752065106565,1.09442943,2665.4,2664.7,0.29382599]
[1752065106770,0.75041,2664.8,2664.7,0.29382599]
[1752065106965,0.75044,2664.7,2664.6,0.00563327]
[1752065107170,1.77894,2664.7,2664.6,0.00563327]
[1752065108976,0.75058,2664.2,2664.1,1.3343]
[1752065109166,3.2078,2664.5,2664.1,27.3153]
[1752065109369,0.75052,2664.5,2664.3,1.84496943]
[1752065109873,0.75052,2664.5,2664.4,27.2292]
[1752065110170,0.7505,2664.5,2664.4,1.2482]
[1752065110975,1.87621,2664.6,2664.0,3.2078]
[1752065111172,0.75058,2664.2,2664.1,1.09442943]
[1752065111367,0.75061,2664.1,2664.0,30.27922943]
[1752065111571,0.75061,2664.1,2664.0,5.05286943]
[1752065111772,0.75061,2664.1,2664.0,1.09442943]
[1752065112270,0.75061,2664.1,2663.9,27.74607]
[1752065112271,0.75061,2664.1,2663.9,1.0184]
[1752065112475,0.75064,2664.0,2663.9,1.0184]
[1752065112982,0.75064,2664.0,2663.9,2.3179]
[1752065113273,0.75064,2664.0,2663.4,54.098]
[1752065113274,0.75078,2663.5,2663.4,3.2078]
[1752065113473,0.75078,2663.5,2663.1,3.2078]
[1752065113474,0.75086,2663.2,2663.1,3.2078]
[1752065113978,0.75089,2663.1,2663.0,1.2995]
[1752065114678,4.31393327,2663.4,2663.0,2.39392943]
[1752065114880,1.10613327,2663.4,2663.3,0.75084]
[1752065115075,0.00563327,2663.4,2663.3,0.75084]
[1752065115378,0.75644327,2663.4,2663.3,2.03554]
[1752065116978,0.00563327,2663.4,2663.3,2.03554]
[1752065117370,0.00563327,2663.4,2663.3,4.1002445]
[1752065117576,0.00563327,2663.4,2663.3,7.3080445]
[1752065118177,0.75644327,2663.4,2663.3,7.3080445]
[1752065118375,0.00563327,2663.4,2663.3,7.3080445]
[1752065118576,0.75644327,2663.4,2663.3,7.3080445]
[1752065118767,0.00563327,2663.4,2663.3,7.3080445]
[1752065119175,0.75644327,2663.4,2663.3,7.3080445]
[1752065119379,11.15273502,2667.0,2663.8,1.87674]
[1752065119380,3.2078,2665.3,2663.8,1.87674]
[1752065119574,1.87614,2664.7,2664.0,2.0647045]
[1752065119775,1.87602,2664.9,2664.3,0.75054]
[1752065119776,0.75054,2664.4,2664.3,0.75054]
[1752065119977,0.75052,2664.5,2664.4,0.75052]
[1752065120373,0.75049,2664.6,2664.5,0.75048]
[1752065120678,0.75039,2664.9,2664.5,1.87625]
[1752065120976,1.004,2665.3,2664.8,3.2078]
[1752065121282,1.75427,2665.3,2665.2,3.2078]
[1752065121579,0.75036,2665.0,2664.9,3.2078]
[1752065125082,0.75041,2664.8,2664.7,0.00563327]
[1752065125286,3.2078,2664.8,2663.9,3.2078]
[1752065125479,3.2078,2664.8,2663.5,1.63856169]
[1752065125480,1.87654,2664.1,2663.6,0.75075]
[1752065125680,0.75073,2663.7,2663.6,0.75075]
[1752065125981,0.75071,2663.8,2663.7,0.75071]
[1752065126784,0.75074,2663.7,2663.6,0.75073]
[1752065127580,0.75075,2663.6,2663.5,3.95856]
[1752065127786,0.75074,2663.7,2663.6,0.75074]
[1752065127988,0.75071,2663.8,2663.7,0.7507]
[1752065128288,0.75074,2663.7,2663.6,0.75073]
[1752065128688,1.05283327,2664.0,2663.9,0.75067]
[1752065128689,1.80351327,2664.0,2663.9,0.75067]
[1752065128887,0.75071,2663.8,2663.5,6.6143045]
[1752065129087,0.75068,2663.9,2663.8,0.75068]
[1752065129389,0.75071,2663.8,2663.7,0.75071]
[1752065129984,0.00563327,2664.0,2663.9,0.75067]
[1752065130288,0.75627327,2664.0,2663.9,3.95847]
[1752065130488,0.75627327,2664.0,2663.9,3.2078]
[1752065131086,8.44225806,2665.1,2664.5,0.75049]
[1752065131279,2.89293,2665.3,2664.6,3.2078]
[1752065131485,40.8,2665.2,2665.0,3.2078]
[1752065131685,0.75038,2665.0,2664.9,3.2078]
[1752065131885,1.87583,2665.1,2664.6,3.2078]
[1752065132080,0.75053,2664.4,2663.9,4.84636169]
[1752065132382,0.75049,2664.6,2664.2,3.2078]
[1752065132587,0.75049,2664.6,2664.5,3.2078]
[1752065132985,7.10964806,2665.6,2664.5,8.2078]
[1752065132986,6.56639806,2665.6,2664.5,8.2078]
[1752065133187,1.0172,2666.0,2665.5,5.2725045]
[1752065133382,3.35859806,2666.4,2665.9,5.2725045]
[1752065133591,3.35859806,2666.4,2666.3,3.2078]
[1752065133592,0.74996,2666.4,2666.3,3.2078]
[1752065133992,41.54996,2666.4,2666.3,3.2078]
[1752065134491,0.74996,2666.4,2666.3,3.2078]
[1752065134685,3.2078,2667.0,2666.3,3.2078]
[1752065134885,0.74996,2666.4,2666.3,3.2078]
[1752065135193,41.8192,2666.9,2666.3,3.95778]
[1752065135388,41.8192,2666.9,2666.7,3.2078]
[1752065135588,0.74977,2667.1,2666.9,0.74981]
[1752065135783,5.42330256,2667.8,2667.0,3.2078]
[1752065135986,0.74975,2667.2,2667.0,3.2078]
[1752065136287,3.2078,2667.6,2667.0,3.2078]
[1752065136485,40.8,2667.7,2667.3,3.2078]
[1752065136691,0.74968,2667.4,2667.3,3.2078]
[1752065137393,0.74968,2667.5,2667.3,3.2078]
[1752065137790,0.74968,2667.4,2667.3,3.2078]
[1752065138291,0.74973,2667.3,2666.8,2.0647045]
[1752065138489,0.74971,2667.3,2667.2,3.2078]
[1752065138694,0.7497,2667.4,2667.2,3.2078]
[1752065139091,0.74971,2667.3,2667.2,3.2078]
[1752065140389,0.7497,2667.4,2667.2,5.2725045]
[1752065140587,1.87389,2667.9,2667.2,5.2725045]
[1752065140588,0.74966,2667.5,2667.2,5.2725045]
[1752065140784,0.74965,2667.5,2667.4,3.2078]
[1752065141487,1.87431,2667.3,2666.8,3.2078]
[1752065141796,0.74982,2666.9,2666.8,3.2078]
[1752065141986,4.2319,2667.8,2666.8,3.95765]
[1752065142192,1.2672,2667.4,2666.8,3.95765]
[1752065142393,0.7498,2667.0,2666.8,3.95765]
[1752065142595,0.7498,2667.0,2666.8,3.95763]
[1752065143297,0.7497,2667.4,2667.2,0.74973]
[1752065143487,0.74967,2667.5,2667.3,0.74971]
[1752065143990,0.74967,2667.5,2667.4,0.74968]
[1752065144190,1.2382,2667.7,2667.2,2.8144345]
[1752065144391,0.7497,2667.4,2667.1,5.2725045]
[1752065144696,0.74967,2667.5,2667.3,0.74971]
[1752065144995,0.74967,2667.5,2667.4,0.74968]
[1752065145397,0.74964,2667.6,2667.5,0.74964]
[1752065145895,0.74965,2667.5,2667.4,3.95746]
[1752065146095,0.74965,2667.5,2667.4,3.2078]
[1752065146492,0.74965,2667.5,2667.4,3.95748]
[1752065147194,0.74965,2667.5,2667.4,3.2078]
[1752065147795,0.74962,2667.7,2667.6,0.7496]
[1752065148087,0.74962,2667.7,2667.4,3.2078]
[1752065148088,0.74965,2667.5,2667.4,3.2078]
[1752065150091,0.74965,2667.5,2666.4,82.125]
[1752065150092,0.74977,2667.1,2667.0,3.2078]
[1752065152094,0.74977,2667.1,2667.0,3.95759]
[1752065152997,0.74977,2667.1,2667.0,3.2078]
[1752065153596,0.74985,2666.8,2666.7,3.2078]
[1752065153800,0.74994,2666.5,2666.4,3.2078]
[1752065155398,7.0647045,2666.5,2665.8,3.2078]
[1752065155598,0.75022,2665.5,2665.4,3.2078]
[1752065161304,0.75033,2665.1,2665.0,3.2078]
[1752065162100,0.75033,2665.1,2665.0,6.0228645]
[1752065162603,0.75033,2665.1,2665.0,5.2725045]
[1752065163404,0.75033,2665.1,2665.0,3.2078]
[1752065163608,0.75041,2664.8,2664.7,3.2078]
[1752065163803,0.7505,2664.5,2664.4,3.2078]
[1752065166002,0.75061,2664.1,2664.0,3.2078]
[1752065167414,0.7507,2663.8,2663.7,3.2078]
[1752065167808,0.7507,2663.8,2663.3,0.75082]
[1752065167809,0.75078,2663.5,2663.4,3.2078]
[1752065168309,0.75091,2663.1,2663.0,3.2078]
[1752065170116,2.2889,2663.4,2663.1,0.75088]
[1752065170316,0.75086,2663.2,2663.1,0.75088]
[1752065170516,3.2078,2663.9,2663.0,7.1497545]
[1752065170817,0.75074,2663.7,2663.5,0.75076]
[1752065171011,0.75074,2663.7,2663.4,3.2078]
[1752065171012,1.294,2663.9,2663.4,5.0848]
[1752065171211,1.294,2663.9,2663.7,0.75072]
[1752065171212,0.7507,2663.8,2663.7,0.75072]
[1752065172723,1.0166,2664.5,2663.7,3.2078]
[1752065172915,0.7506,2664.2,2664.1,0.75059]
[1752065173513,1.294,2664.4,2664.2,0.75056]
[1752065173514,0.75057,2664.3,2664.2,0.75056]
[1752065173720,3.2078,2665.0,2664.1,4.30071563]
[1752065174023,0.75061,2664.1,2664.0,3.2078]
[1752065174721,0.75061,2664.1,2664.0,3.95844]
[1752065174918,0.75061,2664.1,2664.0,3.2078]
[1752065175515,0.75072,2663.8,2663.7,0.75071]
[1752065175720,0.75072,2663.7,2663.6,3.95853]
[1752065176219,0.75071,2663.8,2663.7,0.7507]
[1752065177125,0.75072,2663.7,2663.6,3.95853]
[1752065177526,0.75072,2663.7,2663.6,3.2078]
[1752065178416,0.75081,2663.4,2663.3,3.2078]
[1752065179322,0.75084,2663.3,2663.2,0.00563327]
[1752065179522,2.03794,2663.3,2663.2,0.00563327]
[1752065180519,0.75101,2662.7,2662.6,3.2078]
[1752065180725,0.75109,2662.4,2662.3,3.2078]
[1752065180915,1.2871,2662.6,2662.0,3.2078]
[1752065181120,0.75117,2662.2,2662.1,0.75117]
[1752065181316,0.75117,2662.1,2662.0,3.95899]
[1752065181521,0.75117,2662.2,2662.0,3.95899]
[1752065181824,0.75116,2662.2,2662.0,3.959]
[1752065182025,1.2871,2662.4,2662.0,3.959]
[1752065182026,1.2871,2662.4,2662.0,3.2078]
[1752065182224,0.75116,2662.2,2662.1,0.75116]
[1752065182731,0.75113,2662.3,2662.2,0.75114]
[1752065182925,1.2871,2662.4,2662.0,3.2078]
[1752065183116,0.75114,2662.3,2662.2,0.75114]
[1752065183426,0.75116,2662.2,2662.1,0.75115]
[1752065183625,1.2871,2662.4,2662.0,3.2078]
[1752065184024,0.75107,2662.5,2662.4,0.75106]
[1752065184222,0.75109,2662.4,2662.3,3.2078]
[1752065184418,0.75119,2662.1,2662.0,3.2078]
[1752065185027,0.75119,2662.1,2662.0,3.959]
[1752065185524,42.0549,2662.6,2662.2,0.75113]
[1752065185525,0.75114,2662.3,2662.2,0.75113]
[1752065186829,0.75116,2662.2,2662.1,0.75115]
[1752065187031,0.75117,2662.2,2662.1,0.75115]
[1752065187225,0.75113,2662.3,2662.2,0.75112]
[1752065188832,0.75111,2662.4,2662.3,0.75109]
[1752065189028,42.0549,2662.6,2662.3,3.2078]
[1752065189332,41.55107,2662.6,2662.5,0.75106]
[1752065189525,0.75109,2662.5,2662.4,0.75109]
[1752065189929,0.75109,2662.4,2662.3,3.2078]
[1752065190127,2.06979,2662.4,2662.3,3.2078]
[1752065190331,0.75117,2662.2,2662.1,0.75114]
[1752065190726,0.75117,2662.1,2662.0,3.95898]
[1752065193428,0.75117,2662.1,2662.0,3.2078]
[1752065193630,5.0,2662.1,2661.6,3.2078]
[1752065193835,0.75129,2661.8,2661.7,0.75126]
[1752065194635,3.15126327,2662.0,2661.6,3.2078]
[1752065194636,0.75129,2661.7,2661.6,3.95908]
[1752065194837,0.75686327,2662.0,2661.9,0.75123]
[1752065195037,0.75129,2661.8,2661.7,0.75127]
[1752065195736,0.75124,2661.9,2661.8,0.75123]
[1752065197236,1.88366327,2662.0,2661.6,3.2078]
[1752065197432,0.75129,2661.7,2661.6,3.2078]
[1752065198041,0.75129,2661.7,2661.6,3.95912]
[1752065198345,0.75129,2661.7,2661.6,3.2078]
[1752065198739,0.75145,2661.3,2661.2,3.95922]
[1752065199240,0.75145,2661.3,2661.2,3.2078]
[1752065199638,0.75145,2661.3,2660.8,0.75152]
[1752065199837,0.75145,2661.3,2660.8,0.75153]
[1752065199838,0.75153,2660.9,2660.8,0.75153]
[1752065200740,45.2465,2661.2,2660.8,0.75154]
[1752065200937,0.75157,2660.7,2660.6,3.2078]
[1752065202742,0.75154,2660.8,2660.7,0.75155]
[1752065202942,4.5194,2660.9,2660.3,3.2078]
[1752065203147,0.75165,2660.4,2660.3,3.2078]
[1752065204236,0.75165,2660.4,2660.3,3.95946]
[1752065204438,0.75165,2660.4,2660.3,3.2078]
[1752065206746,0.75177,2660.0,2659.9,3.95958]
[1752065208447,1.87957,2659.8,2659.1,4.83832731]
[1752065208641,0.75199,2659.2,2659.1,3.95981]
[1752065208846,0.75198,2659.3,2659.2,0.75196]
[1752065209045,0.75199,2659.2,2659.1,3.9598]
[1752065210447,0.75199,2659.2,2659.1,0.752]
[1752065210650,6.35184,2659.7,2659.1,0.752]
[1752065210651,3.2078,2660.1,2659.1,10.63205563]
[1752065210844,0.7518,2660.0,2659.9,0.75178]
[1752065211250,3.2078,2660.4,2659.7,5.63205563]
[1752065211451,3.95947,2660.4,2660.3,0.75168]
[1752065212148,43.96749,2660.7,2660.4,0.75163]
[1752065212149,40.8,2660.7,2660.4,0.75163]
[1752065212344,3.2078,2660.7,2660.1,1.3128]
[1752065212551,3.2078,2660.7,2660.0,3.2078]
[1752065212552,0.75174,2660.1,2660.0,3.2078]
[1752065212944,0.75179,2660.0,2659.9,0.7518]
[1752065213149,2.2714,2660.4,2659.6,4.5206]
[1752065213348,0.00563327,2660.6,2660.5,0.75163]
[1752065213548,0.00563327,2660.6,2660.5,6.38368563]
[1752065213747,3.2078,2661.3,2660.5,10.63205563]
[1752065213959,0.7515,2661.0,2660.8,3.95932]
[1752065214249,0.75145,2661.2,2661.0,0.75149]
[1752065214451,0.75143,2661.2,2661.1,0.75146]
[1752065214960,3.2078,2661.3,2660.8,3.2078]
[1752065215457,0.75151,2660.9,2660.8,3.2078]
[1752065216349,3.24543,2661.2,2660.5,0.75161]
[1752065216350,1.87865,2661.1,2660.5,0.75161]
[1752065216550,0.75159,2660.7,2660.5,0.75161]
[1752065216755,0.7516,2660.6,2660.5,0.75161]
[1752065216957,0.75163,2660.5,2660.4,3.2078]
[1752065217659,0.9247,2661.1,2660.9,0.75151]
[1752065217860,0.75156,2660.8,2660.7,0.75156]
[1752065218055,1.87879,2660.9,2660.4,3.2078]
[1752065218359,2.05754,2660.8,2660.7,0.00563327]
[1752065218553,5.26534,2660.8,2660.7,0.00563327]
[1752065219659,2.05754,2660.8,2660.7,0.00563327]
[1752065220658,5.26534,2660.8,2660.7,0.00563327]
[1752065221753,5.26534,2660.8,2659.6,0.75187]
[1752065221754,0.75188,2659.7,2659.6,0.75187]
[1752065221960,0.7519,2659.6,2659.5,0.75189]
[1752065222357,0.75187,2659.7,2659.6,0.75187]
[1752065222560,1.65386,2660.0,2659.9,0.7518]
[1752065222863,3.35859806,2661.7,2661.6,0.75132]
[1752065223059,4.10986806,2661.8,2661.6,3.2078]
[1752065223262,4.10986806,2661.8,2661.7,0.75129]
[1752065223461,0.75127,2661.8,2661.7,0.75129]
[1752065223662,0.75129,2661.7,2661.6,3.2078]
[1752065223859,4.10746171,2661.7,2661.6,3.2078]
[1752065224060,0.75129,2661.7,2661.6,3.2078]
[1752065225464,0.75137,2661.4,2661.3,3.2078]
[1752065226465,1.87861,2661.2,2660.7,3.2078]
[1752065226660,0.75146,2661.1,2661.0,3.2078]
[1752065226860,0.75146,2661.1,2661.0,3.95927]
[1752065227258,2.2636,2661.3,2661.1,0.75144]
[1752065227563,0.75146,2661.1,2661.0,3.95927]
[1752065228366,0.75146,2661.1,2661.0,3.2078]
[1752065229370,0.75154,2660.8,2660.7,3.2078]
[1752065232169,1.33,2661.0,2660.7,3.2078]
[1752065232361,0.75154,2660.8,2660.7,3.2078]
[1752065232968,0.75163,2660.5,2660.4,3.2078]
[1752065233370,2.03313,2660.5,2660.4,3.2078]
[1752065234467,3.35617171,2661.3,2660.4,5.63205563]
[1752065234666,0.75149,2661.0,2660.9,3.2078]
[1752065235062,2.02709,2661.0,2660.9,3.2078]
[1752065236072,0.75149,2661.0,2660.9,3.95931]
[1752065236473,0.75149,2661.0,2660.9,3.2078]
[1752065238275,2.17059144,2660.0,2659.9,4.04379051]
[1752065238575,2.17059144,2660.0,2659.9,7.25159051]
[1752065238763,2.17059144,2660.0,2659.9,8.9596]
[1752065239370,2.92236144,2660.0,2659.9,3.9596]
[1752065239875,2.17059144,2660.0,2659.9,8.9596]
[1752065240472,2.17059144,2660.0,2659.9,3.9596]
[1752065241372,2.17059144,2660.0,2659.9,10.0846]
[1752065241773,2.17059144,2660.0,2659.9,3.9596]
[1752065242075,2.92236144,2660.0,2659.9,3.9596]
[1752065244169,2.92236144,2660.0,2659.9,8.9596]
[1752065244170,2.17059144,2660.0,2659.9,8.9596]
[1752065244876,2.17059144,2660.0,2659.9,10.0846]
[1752065245279,2.17059144,2660.0,2659.9,3.9596]
[1752065245480,2.92236144,2660.0,2659.9,3.9596]
[1752065245671,2.17059144,2660.0,2659.9,3.9596]
[1752065246172,2.92236144,2660.0,2659.9,3.9596]
[1752065246569,2.17059144,2660.0,2659.9,3.9596]
[1752065247377,2.92236144,2660.0,2659.9,3.9596]
[1752065248974,0.75163,2660.6,2660.5,0.75162]
[1752065249280,0.75153,2660.9,2660.8,0.7515]
[1752065249874,2.2141,2661.1,2660.9,0.75149]
[1752065250069,0.75152,2661.0,2660.9,0.75149]
[1752065250576,2.96557,2661.1,2661.0,0.75149]
[1752065250772,2.96557,2661.1,2660.5,7.51109563]
[1752065250977,0.75154,2660.9,2660.8,0.75151]
[1752065251475,0.75151,2661.0,2660.9,0.75149]
[1752065252176,2.96557,2661.1,2661.0,0.75149]
[1752065252376,3.2078,2661.6,2660.9,7.51083563]
[1752065252578,0.75136,2661.5,2661.4,0.75135]
[1752065252872,0.75142,2661.3,2661.2,0.75139]
[1752065253074,0.75139,2661.4,2661.3,3.95917]
[1752065253277,0.8283,2661.9,2661.3,3.2078]
[1752065253477,0.75137,2661.5,2661.4,0.75136]
[1752065253677,0.75134,2661.6,2661.5,0.75131]
[1752065253974,0.75131,2661.7,2661.6,0.75129]
[1752065254174,2.01958,2661.8,2661.7,0.75129]
[1752065254375,1.2683,2661.8,2661.7,0.75129]
[1752065254579,2.01956,2661.8,2661.7,0.75129]
[1752065254780,0.75143,2661.3,2661.2,0.75141]
[1752065254978,0.75133,2661.6,2661.5,0.75133]
[1752065255379,0.75131,2661.7,2661.6,0.75131]
[1752065256084,2.01958,2661.8,2661.7,0.75129]
[1752065256486,0.75128,2661.8,2661.7,0.75129]
[1752065256979,2.05668,2661.8,2661.7,0.75129]
[1752065257181,0.8283,2661.9,2661.8,0.75124]
[1752065257182,0.75125,2661.9,2661.8,0.75124]
[1752065257784,0.75122,2662.0,2661.9,0.7512]
[1752065258376,0.75126,2661.9,2661.8,0.75124]
[1752065259182,0.75126,2661.8,2661.7,3.2078]
[1752065259986,0.75126,2661.8,2661.3,1.87848]
[1752065259987,1.87823,2661.7,2661.3,3.2078]
[1752065260182,1.87823,2661.7,2660.7,3.29762378]
[1752065260183,1.87844,2661.4,2661.1,0.75143]
[1752065260493,0.75148,2661.1,2661.0,0.75146]
[1752065261788,0.75149,2661.0,2660.9,3.2078]
[1752065261988,0.75154,2660.8,2660.7,0.00563327]
[1752065264993,1.87884,2660.9,2660.2,3.2078]
[1752065265195,0.75168,2660.3,2660.2,3.2078]
[1752065265392,0.75188,2659.6,2659.5,7.25167051]
[1752065265691,0.75188,2659.6,2659.5,3.95968]
[1752065265891,0.75188,2659.6,2659.5,3.2078]
[1752065267196,0.75188,2659.6,2659.5,3.95971]
[1752065267393,1.3283,2659.8,2659.6,0.75187]
[1752065267591,0.75188,2659.7,2659.6,0.75187]
[1752065267984,2.08015,2659.8,2659.7,0.75185]
[1752065268385,1.3283,2659.8,2659.7,0.75185]
[1752065268587,0.8949,2660.2,2659.5,3.2078]
[1752065268792,1.64663,2660.2,2660.1,0.75174]